bitfinex/quotes_ETHUSD_20260227
["timestamp","ask_amount","ask_price","bid_price","bid_amount"]
[1772167552548,0.62302824,2049.6,2049.4,0.001]
[1772167553041,0.002,2049.6,2049.4,0.62291693]
[1772167553739,0.002,2049.5,2049.4,0.62291693]
[1772167561337,0.002,2049.8,2049.5,0.62191693]
[1772167561520,0.002,2049.9,2049.6,0.62191693]
[1772167562731,0.002,2049.9,2049.6,1.2197275]
[1772167562921,0.002,2049.9,2049.7,0.62191693]
[1772167564856,0.002,2049.9,2049.7,1.21966878]
[1772167565054,0.002,2049.9,2049.8,0.62191693]
[1772167566262,0.002,2050.1,2049.8,0.62191693]
[1772167566263,1e-08,2050.1,2049.8,0.62191693]
[1772167567354,1e-08,2050.1,2049.8,1.21962626]
[1772167567557,1e-08,2050.1,2049.9,0.62191693]
[1772167568561,0.62102825,2050.1,2049.7,1.406]
[1772167568766,1e-08,2050.1,2049.8,0.62191693]
[1772167568943,0.62102825,2050.1,2049.8,0.62191693]
[1772167569141,1e-08,2050.1,2049.8,0.62191693]
[1772167569534,0.62102825,2050.1,2049.8,0.62191693]
[1772167570737,1e-08,2050.1,2049.9,0.59328405]
[1772167571350,0.62500738,2050.1,2049.8,0.59328405]
[1772167571540,1.8444731,2050.1,2049.8,0.59328405]
[1772167571869,0.62500737,2050.0,2049.7,1.406]
[1772167572566,0.62500737,2050.0,2049.7,1.99928405]
[1772167573860,1.84455735,2050.0,2049.7,1.99928405]
[1772167574361,0.62500737,2049.9,2049.4,0.001]
[1772167574574,0.62500737,2049.9,2049.1,0.59428405]
[1772167575843,0.62500737,2049.7,2049.1,0.59428405]
[1772167576860,0.62500737,2049.7,2049.3,0.001]
[1772167577156,0.62700737,2049.7,2049.3,0.001]
[1772167577742,1.21975019,2049.6,2049.3,0.001]
[1772167577938,1.84475756,2049.6,2049.3,0.001]
[1772167578538,1.21975019,2049.6,2049.3,0.001]
[1772167578738,0.62500737,2049.5,2049.3,0.001]
[1772167581165,1.8448288,2049.5,2049.3,0.001]
[1772167581870,1.21979539,2049.6,2049.4,0.59328405]
[1772167582038,0.62500737,2049.8,2049.4,1.06995891]
[1772167582363,0.62500737,2049.8,2049.3,2.00028405]
[1772167583183,1.84467119,2049.8,2049.4,0.59328405]
[1772167584245,0.62700737,2049.9,2049.5,0.59328405]
[1772167584453,0.002,2049.9,2049.5,0.59328405]
[1772167585051,0.002,2049.9,2049.5,1.21979191]
[1772167585270,0.002,2049.9,2049.6,0.59328405]
[1772167586371,0.62700737,2049.9,2049.6,0.59328405]
[1772167587269,1.84658663,2049.9,2049.6,0.59328405]
[1772167588663,0.62700737,2049.9,2049.6,0.59328405]
[1772167588971,1.846584,2049.9,2049.6,0.59328405]
[1772167589466,0.62500737,2049.8,2049.4,1.06995891]
[1772167589643,0.62500737,2049.8,2049.5,0.001]
[1772167590050,0.002,2049.7,2049.5,0.001]
[1772167590544,0.002,2049.7,2049.5,0.59428405]
[1772167590746,0.002,2049.7,2049.5,0.001]
[1772167590952,0.002,2049.7,2049.5,0.59428405]
[1772167593177,0.62700737,2049.7,2049.5,0.001]
[1772167594459,0.62700737,2049.7,2049.1,0.001]
[1772167594460,0.62500737,2049.5,2049.1,0.001]
[1772167594658,0.62500737,2049.5,2049.1,0.002]
[1772167594972,0.62500737,2049.5,2049.1,0.001]
[1772167596984,0.62500737,2049.3,2049.1,0.001]
[1772167598165,0.62500737,2049.3,2049.0,0.001]
[1772167598466,0.62500737,2049.3,2048.8,0.001]
[1772167598467,0.62500737,2049.2,2048.8,0.001]
[1772167598671,0.62500737,2049.2,2048.8,0.002]
[1772167599093,0.62500737,2049.0,2048.8,0.002]
[1772167599277,1.22004782,2049.1,2048.4,0.59428405]
[1772167599278,0.62500737,2048.8,2048.4,0.59428405]
[1772167599459,3.17572268,2049.1,2048.6,0.59328405]
[1772167599460,2.69904782,2049.1,2048.6,0.59328405]
[1772167600675,3.30069047,2049.1,2048.6,0.59328405]
[1772167601280,0.60164265,2049.0,2048.4,0.60478224]
[1772167601487,2.69904782,2049.1,2048.5,0.60378224]
[1772167601986,1.82151188,2049.4,2048.9,0.60378224]
[1772167602371,1.82151188,2049.4,2049.0,0.60478224]
[1772167603484,3.78017141,2049.5,2049.0,0.60478224]
[1772167607889,0.60164265,2049.4,2049.0,0.60478224]
[1772167608197,1.21992875,2049.3,2049.0,0.60478224]
[1772167608881,0.60164265,2049.2,2049.0,0.001]
[1772167609194,0.60164265,2049.2,2048.8,0.001]
[1772167609691,0.60164265,2049.2,2048.8,0.60478224]
[1772167609989,0.60164265,2049.2,2048.8,0.001]
[1772167610663,1.22004782,2049.1,2048.8,0.63002962]
[1772167610865,3.35075089,2049.5,2048.8,0.63002962]
[1772167611184,0.64391406,2049.4,2048.8,0.63002962]
[1772167612169,3.18351169,2049.5,2048.8,0.63002962]
[1772167612702,3.82742575,2049.5,2048.8,0.63002962]
[1772167613693,0.64391406,2049.2,2048.8,0.001]
[1772167613886,0.64391406,2048.9,2048.8,0.001]
[1772167614088,0.64391406,2048.9,2048.4,0.63002962]
[1772167615702,1.12058892,2048.9,2048.4,0.63002962]
[1772167615875,1.22022647,2048.8,2048.4,0.63002962]
[1772167616205,1.86414053,2048.8,2048.4,0.63002962]
[1772167616568,1.86414053,2048.8,2048.5,0.001]
[1772167617407,0.64391406,2048.7,2048.5,0.001]
[1772167617576,0.64391406,2048.7,2048.2,0.001]
[1772167617976,1.2203456,2048.6,2048.2,0.001]
[1772167618176,1.86425966,2048.6,2048.2,0.001]
[1772167619483,0.64391406,2048.5,2048.2,0.001]
[1772167620114,1.22046475,2048.4,2048.2,0.001]
[1772167620912,1.86435475,2048.5,2048.2,0.001]
[1772167623123,0.64391406,2048.4,2047.8,1.10570448]
[1772167623425,0.64391406,2048.4,2047.9,0.62902962]
[1772167625114,1.22044069,2048.5,2047.9,0.62902962]
[1772167625328,0.64391406,2048.5,2047.9,0.62902962]
[1772167626103,0.64391406,2048.2,2047.5,0.62902962]
[1772167627714,1.22064352,2048.1,2047.6,0.62902962]
[1772167627913,1.22057059,2048.3,2047.9,0.62902962]
[1772167628117,1.22057059,2048.3,2048.1,0.001]
[1772167628511,0.002,2048.2,2048.1,0.001]
[1772167629300,1.22032894,2048.7,2048.1,0.63002962]
[1772167629622,1.22232894,2048.7,2048.1,0.63002962]
[1772167630005,0.002,2048.7,2048.3,0.63552873]
[1772167630715,0.002,2048.7,2048.5,0.63552873]
[1772167631050,1.80037656,2049.2,2048.7,0.63552873]
[1772167633702,2.71396951,2049.3,2048.8,0.63552873]
[1772167633901,0.002,2049.3,2049.1,0.63552873]
[1772167634410,0.002,2049.5,2049.2,1.11220359]
[1772167634598,0.002,2049.5,2049.3,0.63552873]
[1772167635627,0.002,2049.5,2049.1,0.63552873]
[1772167637831,0.002,2049.5,2049.1,1.21999702]
[1772167638006,0.002,2049.5,2049.2,0.63552873]
[1772167639609,0.002,2049.8,2049.4,0.63552873]
[1772167640741,0.002,2049.8,2049.4,1.85539332]
[1772167640938,0.002,2049.8,2049.5,0.63552873]
[1772167641156,0.002,2050.0,2049.5,0.63552873]
[1772167642844,0.002,2050.0,2049.6,1.21975019]
[1772167643017,0.002,2050.0,2049.7,0.63552873]
[1772167644834,1e-08,2050.1,2049.9,0.63552873]
[1772167645052,0.002,2050.2,2049.9,0.63552873]
[1772167646647,0.002,2050.0,2049.9,0.63552873]
[1772167646850,0.002,2050.2,2049.9,0.63552873]
[1772167647054,0.002,2050.4,2050.0,0.63552873]
[1772167647616,0.002,2050.3,2050.0,0.63552873]
[1772167649059,0.002,2050.3,2050.2,0.63552873]
[1772167649241,0.002,2050.3,2050.2,2.03452873]
[1772167649555,1.22103647,2050.8,2050.3,0.63552873]
[1772167649732,0.002,2050.8,2050.3,0.63552873]
[1772167650053,0.002,2050.8,2050.2,1.399]
[1772167650054,0.58234194,2050.8,2050.2,1.399]
[1772167651126,1.21909591,2050.7,2050.2,2.03452873]
[1772167651354,1.79943785,2050.7,2050.2,2.03452873]
[1772167652351,0.58034194,2050.6,2050.2,2.03452873]
[1772167652857,0.58034194,2050.6,2050.2,1.399]
[1772167653855,0.58034194,2050.4,2050.2,1.399]
[1772167654155,0.58034194,2050.4,2049.6,0.63552873]
[1772167656127,1.21933375,2050.3,2049.6,0.63552873]
[1772167656329,1.21933375,2050.3,2049.6,1.85527535]
[1772167656330,0.58034194,2050.2,2049.6,1.85527535]
[1772167656850,0.58034194,2050.2,2049.6,0.63552873]
[1772167657047,0.58034194,2050.2,2049.4,0.63652873]
[1772167657776,0.58034194,2050.2,2049.4,1.85638008]
[1772167658284,0.58034194,2049.8,2049.4,0.001]
[1772167658973,0.58034194,2049.8,2049.6,0.001]
[1772167659168,0.58034194,2049.8,2049.1,0.001]
[1772167660560,0.57634644,2049.6,2049.1,0.001]
[1772167661784,0.57634644,2049.6,2049.1,0.60770028]
[1772167663366,1.79611791,2049.6,2049.1,1.82774766]
[1772167663948,1.79611791,2049.6,2049.1,0.60770028]
[1772167664148,1.79611791,2049.6,2049.1,1.82774514]
[1772167664665,1.79611791,2049.6,2049.1,0.60770028]
[1772167664975,1.79611791,2049.6,2049.1,1.82774545]
[1772167665856,1.79611791,2049.6,2049.1,0.60770028]
[1772167666052,1.79611791,2049.6,2049.1,1.82774804]
[1772167666579,1.79611791,2049.6,2049.1,0.60770028]
[1772167666782,0.57634644,2049.5,2049.1,0.001]
[1772167667372,1.79607721,2049.7,2049.1,1.82773682]
[1772167667574,1.79607721,2049.7,2049.2,0.60670028]
[1772167667776,0.57634644,2049.6,2049.2,0.60670028]
[1772167669872,1.79615364,2049.6,2049.2,0.60670028]
[1772167671787,1.79615364,2049.6,2049.4,0.001]
[1772167673872,0.5515255,2049.5,2049.4,0.001]
[1772167677486,0.5515255,2049.8,2049.4,0.001]
[1772167678788,0.5515255,2049.8,2049.1,0.001]
[1772167679385,0.5515255,2049.6,2049.1,0.55862713]
[1772167679562,0.5515255,2049.6,2049.1,1.7786723]
[1772167680279,0.5515255,2049.6,2049.1,0.55862713]
[1772167680788,4.87831252,2049.9,2049.1,0.55862713]
[1772167680789,1.77114062,2049.9,2049.2,0.55762713]
[1772167680986,0.5515255,2049.8,2049.2,0.55762713]
[1772167681488,1.77120168,2049.8,2049.3,0.55762713]
[1772167681869,0.5515255,2050.0,2049.3,0.55762713]
[1772167682192,1.771044,2050.0,2049.3,0.55762713]
[1772167683255,1.771044,2050.0,2049.4,0.55762713]
[1772167683492,1.771044,2050.0,2049.5,0.55762713]
[1772167684292,0.002,2049.6,2049.5,0.55762713]
[1772167684474,1.771044,2050.0,2049.5,0.55762713]
[1772167684788,0.002,2049.9,2049.5,0.55762713]
[1772167686165,0.002,2049.9,2049.6,0.55762713]
[1772167688075,0.002,2050.4,2049.8,0.55762713]
[1772167688279,0.002,2050.8,2050.4,0.55762713]
[1772167688466,1.22105433,2050.8,2050.5,0.55762713]
[1772167688682,1.77257983,2050.8,2050.4,1.95262713]
[1772167688885,0.5515255,2050.7,2049.8,0.55762713]
[1772167689108,1.93582658,2050.8,2049.8,0.55762713]
[1772167689109,0.5515255,2050.5,2049.8,0.55762713]
[1772167689778,0.58012036,2050.7,2050.0,0.52828899]
[1772167690182,1.79927256,2050.7,2050.2,0.52828899]
[1772167690382,0.58012036,2050.6,2050.2,0.52828899]
[1772167690630,0.58012036,2050.6,2050.0,0.52828899]
[1772167692317,1.79930101,2050.6,2050.1,0.52828899]
[1772167693294,1.21913571,2050.7,2050.1,0.52828899]
[1772167693709,6.94636493,2050.8,2050.1,0.52828899]
[1772167693710,0.002,2050.8,2050.2,0.52828899]
[1772167693898,0.58012036,2050.7,2050.0,3.14080103]
[1772167694201,0.58012036,2050.7,2050.1,0.52828899]
[1772167694398,0.58012036,2050.6,2050.1,1.74773844]
[1772167695024,0.58012036,2050.6,2050.2,0.52828899]
[1772167695822,1.80120122,2050.8,2050.2,0.52828899]
[1772167696027,1.2210366,2050.8,2050.2,0.52828899]
[1772167696621,0.002,2050.4,2050.3,1.74762274]
[1772167696795,0.58212036,2050.8,2050.1,0.52828899]
[1772167697200,0.58212036,2050.6,2050.1,0.52828899]
[1772167698940,1.21921482,2050.5,2050.1,0.52828899]
[1772167700348,1.79933518,2050.5,2050.0,1.393]
[1772167700706,0.58012036,2050.4,2050.0,1.393]
[1772167701146,1.79942829,2050.4,2050.0,1.393]
[1772167701438,0.58012036,2050.4,2050.0,3.14079756]
[1772167701734,0.58012036,2050.4,2050.0,1.92128899]
[1772167702040,0.002,2050.6,2050.2,0.52828899]
[1772167702352,0.002,2050.6,2049.7,0.001]
[1772167702353,0.58012036,2050.3,2049.7,0.001]
[1772167702507,0.58012036,2050.3,2049.7,0.52928899]
[1772167702709,0.58012036,2050.1,2049.7,0.001]
[1772167703114,1.21951219,2050.0,2049.7,0.001]
[1772167703316,0.58012036,2049.9,2049.7,0.001]
[1772167704154,0.58012036,2049.9,2049.5,0.001]
[1772167705356,1.79969719,2049.9,2049.5,0.52928899]
[1772167709622,1.79969719,2049.9,2049.7,0.001]
[1772167710556,0.58012036,2049.8,2049.7,0.001]
[1772167711253,0.58012036,2049.8,2049.3,0.001]
[1772167711633,0.58012036,2049.8,2049.3,0.52928899]
[1772167712859,1.79981104,2049.7,2049.3,0.52928899]
[1772167713463,1.21969068,2049.7,2049.3,0.52928899]
[1772167715085,0.58012036,2049.7,2049.3,0.52928899]
[1772167716362,1.79960214,2050.1,2049.6,0.52828899]
[1772167716579,0.58012036,2050.0,2049.6,0.52828899]
[1772167717487,0.58012036,2050.0,2049.6,1.74799728]
[1772167717693,0.58012036,2050.1,2049.7,0.52828899]
[1772167719084,1.77344525,2050.2,2049.7,0.52828899]
[1772167719286,1.77532831,2050.4,2049.8,0.51272338]
[1772167720597,0.5215924,2050.3,2049.8,0.51272338]
[1772167721994,1.21939322,2050.2,2049.8,0.51272338]
[1772167722595,0.002,2050.0,2049.8,0.51272338]
[1772167723491,0.002,2050.0,2049.8,1.21961937]
[1772167723672,0.002,2050.0,2049.9,0.51551802]
[1772167725494,0.002,2050.0,2049.9,1.7350897]
[1772167725695,0.002,2050.0,2049.9,0.51551802]
[1772167726086,0.002,2050.0,2049.5,0.51651802]
[1772167726407,0.5215924,2049.9,2049.5,0.51651802]
[1772167727108,0.5215924,2049.8,2049.5,0.001]
[1772167728474,1.74126878,2049.8,2049.5,0.001]
[1772167730323,1.74126878,2049.8,2049.5,0.291]
[1772167730720,0.5215924,2049.7,2049.5,0.291]
[1772167731103,0.5215924,2049.7,2049.3,0.001]
[1772167731404,0.5235924,2050.3,2049.7,0.51551802]
[1772167731712,0.5215924,2050.2,2049.7,0.51551802]
[1772167733100,1.74103062,2050.2,2049.7,0.51551802]
[1772167734922,1.74103062,2050.2,2049.8,0.51551802]
[1772167735124,0.002,2050.0,2049.8,0.51551802]
[1772167739812,0.002,2050.2,2049.9,0.51551802]
[1772167744349,0.002,2050.4,2050.2,0.51551802]
[1772167746330,0.002,2050.4,2050.2,1.73489006]
[1772167746654,0.002,2050.4,2050.3,0.51551802]
[1772167747223,0.002,2050.8,2050.4,0.51551802]
[1772167747637,0.002,2051.0,2050.7,0.51551802]
[1772167748471,0.43817738,2051.3,2050.7,1.69534686]
[1772167748625,2.13318337,2051.3,2050.8,0.51551802]
[1772167749252,0.43817738,2051.3,2050.8,0.51551802]
[1772167749653,0.002,2051.3,2051.0,0.51551802]
[1772167750351,0.002,2051.3,2051.2,0.5297137]
[1772167750650,0.002,2051.5,2051.2,0.5297137]
[1772167751058,0.002,2051.5,2051.0,2.60986886]
[1772167751059,0.002,2051.5,2051.4,0.5297137]
[1772167751452,0.43558918,2052.3,2051.5,0.5297137]
[1772167751962,0.4349597,2052.1,2051.4,1.391]
[1772167752346,1.65328138,2052.1,2051.5,1.74833341]
[1772167752661,1.65328138,2052.1,2051.6,0.5297137]
[1772167752965,0.43433924,2052.0,2051.4,1.9207137]
[1772167753550,0.43433924,2052.0,2051.5,0.5297137]
[1772167754340,0.43373263,2051.8,2051.1,0.5297137]
[1772167756159,0.43373263,2051.8,2051.0,1.39]
[1772167756771,0.4319422,2051.6,2050.7,0.5297137]
[1772167757071,0.4319422,2051.4,2050.6,0.5297137]
[1772167757943,1.92836509,2051.6,2050.6,0.5297137]
[1772167758146,0.43136509,2051.5,2050.6,0.5297137]
[1772167759667,1.21867992,2051.4,2050.8,0.5297137]
[1772167760585,0.002,2051.3,2050.8,0.5297137]
[1772167760782,0.43164779,2051.3,2050.7,1.21909591]
[1772167760954,0.43164779,2051.3,2049.7,7.30827065]
[1772167760955,0.43164779,2051.3,2050.5,0.5297137]
[1772167761684,1.21879875,2051.2,2050.5,0.5297137]
[1772167761873,0.42908919,2051.1,2050.5,0.5297137]
[1772167763070,1.21879875,2051.2,2050.6,0.5297137]
[1772167763503,0.002,2051.3,2050.6,0.5297137]
[1772167763863,0.002,2051.3,2050.8,0.5297137]
[1772167766363,0.002,2051.3,2051.0,0.5297137]
[1772167767200,19.258439,2050.8,2050.1,0.5307137]
[1772167767490,19.74911248,2050.7,2050.1,1.75016101]
[1772167767668,0.49067348,2050.7,2050.1,1.75016101]
[1772167768058,0.49067348,2051.2,2050.1,1.75016101]
[1772167768485,1.21903647,2050.8,2050.2,0.5297137]
[1772167770100,0.49067348,2050.7,2050.1,0.001]
[1772167771292,1.70982884,2050.6,2050.1,0.001]
[1772167772373,1.70982884,2050.6,2050.3,0.001]
[1772167774119,0.49067348,2050.5,2050.3,0.001]
[1772167775683,1.21927428,2050.4,2050.3,0.001]
[1772167776106,1.70994776,2050.4,2050.1,0.001]
[1772167776709,0.49067348,2050.3,2050.1,0.001]
[1772167777923,3.33276799,2050.7,2050.1,0.5307137]
[1772167777924,5.36729495,2050.7,2050.1,0.5307137]
[1772167778091,19.74911248,2050.5,2050.1,0.001]
[1772167778289,0.49067348,2050.5,2050.1,0.001]
[1772167780508,1.70994377,2050.5,2050.1,0.001]
[1772167785721,1.70994377,2050.5,2050.3,0.001]
[1772167785924,1.71194377,2050.5,2050.3,0.001]
[1772167786105,1.71194377,2050.5,2050.1,0.001]
[1772167786696,1.22127029,2050.5,2050.1,0.001]
[1772167786901,0.5035654,2050.4,2050.1,0.001]
[1772167787511,1.22127029,2050.5,2050.1,0.48825548]
[1772167787824,0.5055654,2050.5,2050.1,0.48825548]
[1772167789951,1.21927428,2050.4,2050.1,0.48825548]
[1772167790622,1.72283968,2050.4,2050.1,0.001]
[1772167790819,0.5035654,2050.3,2050.1,0.001]
[1772167791543,0.5035654,2050.3,2049.9,0.001]
[1772167791749,0.5035654,2050.3,2049.3,0.48825548]
[1772167791750,0.5035654,2050.2,2049.3,0.48825548]
[1772167791950,1.21951219,2050.0,2049.3,0.48825548]
[1772167792245,0.5035654,2049.9,2049.3,0.48825548]
[1772167794535,1.21963118,2049.8,2049.3,0.48825548]
[1772167795970,1.72317607,2049.9,2049.5,0.48825548]
[1772167798472,1.72317607,2049.9,2049.7,0.001]
[1772167802451,3.33476799,2050.3,2049.7,0.48825548]
[1772167802452,0.5035654,2050.1,2049.7,0.48825548]
[1772167802648,2.73648678,2050.1,2049.7,0.48825548]
[1772167802968,2.73646248,2050.1,2049.7,0.48825548]
[1772167803553,3.24002788,2050.1,2049.7,0.48825548]
[1772167805651,0.5035654,2050.0,2049.7,0.001]
[1772167805854,0.5035654,2050.0,2049.5,0.001]
[1772167808498,1.21957168,2049.9,2049.5,0.48825548]
[1772167809095,1.21957168,2049.9,2049.2,0.001]
[1772167809096,0.5035654,2049.8,2049.2,0.001]
[1772167809294,0.5035654,2049.6,2048.9,0.001]
[1772167809497,0.5035654,2049.6,2048.9,0.48825548]
[1772167810381,1.70864002,2049.5,2049.0,0.50757573]
[1772167810681,0.48883032,2049.4,2049.0,0.50757573]
[1772167811394,0.48883032,2049.4,2049.2,0.001]
[1772167814703,0.48883032,2049.3,2048.9,0.001]
[1772167815001,0.48883032,2049.2,2048.9,0.001]
[1772167817295,1.21998954,2049.2,2048.9,0.50857573]
[1772167817494,1.70881986,2049.2,2048.9,0.50857573]
[1772167818501,1.70881986,2049.2,2048.9,0.001]
[1772167823008,1.70881986,2049.2,2049.1,0.001]
[1772167823584,1.71081986,2049.2,2049.1,0.001]
[1772167825208,1.71081986,2049.2,2048.9,0.001]
[1772167826213,1.71081986,2049.2,2048.9,0.50857573]
[1772167827913,1.71081986,2049.2,2049.0,0.16625875]
[1772167827914,0.002,2049.2,2049.0,0.16625875]
[1772167828716,0.002,2049.2,2048.9,0.001]
[1772167828717,0.49083032,2049.2,2048.9,0.001]
[1772167829585,0.49083032,2049.2,2048.6,0.16790716]
[1772167829987,0.48883032,2049.0,2048.6,0.16790716]
[1772167830207,2.02283032,2048.9,2048.6,0.16790716]
[1772167831417,1.534,2048.9,2048.6,0.16790716]
[1772167831900,2.02283032,2048.9,2048.6,0.16790716]
[1772167832704,3.24299982,2048.9,2048.6,0.16790716]
[1772167833015,1.534,2048.9,2048.6,0.16790716]
[1772167833319,0.002,2049.2,2048.8,0.16942137]
[1772167833523,1.535,2049.4,2049.0,0.16742137]
[1772167833888,0.002,2049.5,2049.1,1.22004782]
[1772167834119,0.002,2049.5,2049.2,0.16803212]
[1772167835107,0.49083032,2049.5,2049.0,1.3887352]
[1772167835315,0.49083032,2049.5,2049.0,0.16863276]
[1772167835706,0.49083032,2049.5,2049.1,0.001]
[1772167836015,0.002,2049.3,2049.1,0.001]
[1772167836521,0.002,2049.3,2049.1,0.1702374]
[1772167838493,0.002,2049.3,2049.2,0.17041709]
[1772167839298,0.51470566,2049.3,2049.1,0.001]
[1772167839497,0.002,2049.3,2049.1,0.001]
[1772167842818,0.53905941,2049.3,2049.1,0.001]
[1772167846935,0.53705941,2049.2,2049.1,0.001]
[1772167848612,0.53705941,2049.2,2048.9,0.001]
[1772167849434,0.53705941,2049.0,2048.9,0.001]
[1772167850618,2.75900948,2049.2,2048.9,0.001]
[1772167850915,3.29605506,2049.2,2048.9,0.18044995]
[1772167851237,2.07605941,2049.2,2048.9,0.18044995]
[1772167851422,1.539,2049.2,2048.9,0.18044995]
[1772167851628,0.53705941,2049.1,2048.9,0.001]
[1772167852028,1.539,2049.2,2048.9,0.18094334]
[1772167854423,0.002,2049.3,2049.0,0.18090634]
[1772167854617,0.53905941,2049.3,2049.0,0.18090634]
[1772167854835,0.53905941,2049.3,2048.9,0.001]
[1772167855142,0.53905941,2049.3,2048.9,0.18237728]
[1772167855443,1.75899853,2049.3,2048.9,0.18237728]
[1772167855816,0.53905941,2049.3,2048.9,0.18237728]
[1772167856938,3.3006924,2049.8,2049.2,0.18030745]
[1772167857109,0.53705941,2049.5,2048.9,0.18130745]
[1772167859946,1.75692864,2049.4,2048.9,0.18130745]
[1772167860439,0.53705941,2049.3,2049.1,0.001]
[1772167860643,1.75675009,2049.7,2049.1,0.18266832]
[1772167860816,0.002,2049.3,2049.1,0.18266832]
[1772167861815,0.53905941,2049.3,2049.1,0.001]
[1772167862015,0.53705941,2049.1,2048.7,0.001]
[1772167862317,0.53705941,2049.1,2048.7,0.002]
[1772167863140,0.53705941,2049.1,2048.7,0.001]
[1772167863922,0.53705941,2048.9,2048.7,0.001]
[1772167867250,1.75722876,2048.9,2048.7,0.001]
[1772167870655,0.53705941,2048.9,2048.7,0.001]
[1772167870861,0.53705941,2048.9,2048.7,0.002]
[1772167871231,0.49542489,2049.1,2048.7,0.18964273]
[1772167871561,0.49742489,2049.3,2048.9,0.18764273]
[1772167872059,1.71735867,2049.3,2048.9,0.18764273]
[1772167872359,0.49542489,2049.0,2048.7,0.001]
[1772167872525,0.49542489,2049.0,2048.7,0.002]
[1772167873657,0.49542489,2049.0,2048.6,0.001]
[1772167873658,0.49542489,2048.7,2048.4,0.001]
[1772167873830,0.49542489,2048.7,2048.1,0.19078839]
[1772167874652,0.49542489,2048.5,2048.1,0.001]
[1772167876547,1.71583681,2048.5,2048.1,0.001]
[1772167880064,1.71560842,2048.9,2048.4,0.19200138]
[1772167880436,0.49542489,2048.8,2048.4,0.19200138]
[1772167882868,0.49542489,2048.8,2048.4,1.41243928]
[1772167883848,0.49542489,2048.8,2048.4,0.19200138]
[1772167884166,1.71565711,2048.8,2048.4,0.19200138]
[1772167885371,0.49542489,2048.8,2048.4,1.4124581]
[1772167885538,0.002,2048.6,2048.4,0.19200138]
[1772167887845,0.002,2048.6,2048.4,1.4124496]
[1772167888052,0.002,2048.6,2048.4,1.22044822]
[1772167888271,0.002,2048.6,2048.5,0.19468578]
[1772167888748,0.002,2048.6,2048.3,1.41647298]
[1772167888934,0.002,2048.6,2048.4,0.19499658]
[1772167890668,0.002,2048.8,2048.5,0.19531078]
[1772167892148,0.49742489,2048.8,2048.5,0.19531078]
[1772167892351,0.49742489,2048.8,2048.4,0.19277962]
[1772167892537,1.71571092,2048.7,2048.4,0.19277962]
[1772167893147,0.49542489,2048.6,2048.3,0.001]
[1772167895376,0.002,2048.8,2048.3,0.19300684]
[1772167895554,1.71749578,2049.1,2048.4,0.19000684]
[1772167895955,0.49742489,2049.1,2048.4,0.19000684]
[1772167896266,0.002,2049.1,2048.4,0.19000684]
[1772167896471,0.002,2049.1,2048.3,2.08354242]
[1772167896472,0.002,2049.1,2048.6,0.18975157]
[1772167897149,0.002,2049.1,2048.8,0.18949905]
[1772167897574,0.002,2049.3,2049.0,0.18949905]
[1772167899281,0.53711237,2049.3,2048.8,0.18875864]
[1772167899484,0.53711237,2049.3,2048.8,1.40898107]
[1772167900000,0.53711237,2049.3,2048.8,1.22022243]
[1772167900167,0.53577991,2049.6,2049.2,0.18829012]
[1772167900371,1.75553702,2049.6,2049.2,0.18829012]
[1772167900688,1.75553702,2049.6,2048.7,6.24712349]
[1772167900689,0.53377991,2049.5,2048.6,1.93588802]
[1772167900885,0.53377991,2049.5,2048.6,0.90359669]
[1772167901955,0.53377991,2049.3,2048.6,0.90359669]
[1772167902358,0.53377991,2049.3,2048.6,0.71554242]
[1772167903591,0.53377991,2049.2,2048.5,0.001]
[1772167903961,0.53377991,2049.0,2048.5,0.001]
[1772167904763,0.53377991,2049.0,2048.5,0.18814507]
[1772167906593,1.75391428,2049.0,2048.5,0.18814507]
[1772167906774,1.75391428,2049.0,2048.5,1.40854885]
[1772167907177,1.75391428,2049.0,2048.5,0.18814507]
[1772167907178,0.53377991,2048.9,2048.5,0.18814507]
[1772167908491,0.53377991,2048.9,2048.5,1.40854627]
[1772167908671,0.53377991,2048.9,2048.5,0.18814507]
[1772167908876,0.53377991,2048.9,2048.5,1.40854745]
[1772167909175,0.53377991,2048.9,2048.5,0.18814507]
[1772167910473,0.53377991,2048.9,2048.5,1.40854437]
[1772167910674,0.002,2048.7,2048.5,1.40854437]
[1772167911076,0.002,2048.7,2048.5,0.001]
[1772167912371,0.002,2048.7,2048.5,1.22140081]
[1772167912575,0.002,2048.7,2048.5,1.40707141]
[1772167913478,0.53577991,2049.2,2048.7,0.18346549]
[1772167913912,0.53377991,2049.1,2048.7,0.18346549]
[1772167915700,1.75383899,2049.1,2048.7,0.18346549]
[1772167916371,0.53377991,2049.0,2048.7,0.18346549]
[1772167917894,0.002,2049.2,2048.9,0.18248988]
[1772167918095,1.75577901,2049.2,2048.9,0.18248988]
[1772167918302,0.53377991,2049.1,2048.7,0.18248988]
[1772167920094,0.53377991,2049.1,2048.8,0.18212399]
[1772167920298,0.002,2049.2,2048.8,0.18212399]
[1772167920489,0.002,2049.2,2048.9,0.18212399]
[1772167921008,0.002,2049.6,2049.1,0.17994148]
[1772167921009,0.53577991,2049.6,2049.1,0.17994148]
[1772167921182,0.53577991,2049.6,2049.2,0.71554242]
[1772167921382,0.002,2049.6,2049.3,0.17994148]
[1772167921804,0.53577991,2049.6,2049.3,0.17994148]
[1772167922005,0.002,2049.6,2049.3,0.17994148]
[1772167922206,0.53577991,2049.6,2049.3,0.17994148]
[1772167923494,0.002,2049.6,2049.4,0.17958499]
[1772167924016,0.002,2049.8,2049.4,0.89495812]
[1772167924192,0.53577991,2049.8,2049.4,0.89495812]
[1772167924392,0.53577991,2049.8,2049.4,2.11481064]
[1772167925413,0.53577991,2049.8,2049.4,0.89495812]
[1772167925593,0.53377991,2049.7,2049.3,1.371]
[1772167925792,0.53377991,2049.7,2049.3,2.77000395]
[1772167926132,0.002,2049.8,2049.4,0.17907796]
[1772167926496,0.002,2049.8,2049.4,1.39890647]
[1772167927224,0.002,2049.8,2049.5,0.17890809]
[1772167928921,0.53577991,2049.8,2049.3,2.76947363]
[1772167929134,0.53577991,2049.8,2049.3,1.54957721]
[1772167929495,0.53577991,2049.8,2049.3,1.371]
[1772167929691,0.53577991,2049.8,2049.0,2.77268133]
[1772167930201,0.002,2050.3,2049.8,0.17624903]
[1772167930513,0.002,2050.3,2049.6,6.43988178]